bitfinex-derivatives/quotes_BTCF0:USTF0_20250119
["timestamp","ask_amount","ask_price","bid_price","bid_amount"]
[1737250735670,0.3608,104720.0,104710.0,0.0879543]
[1737250736067,0.3608,104720.0,104710.0,0.1357503]
[1737250736575,0.3608,104720.0,104700.0,0.98727523]
[1737250736775,0.3608,104720.0,104700.0,0.99922933]
[1737250737282,0.3608,104710.0,104700.0,0.83312933]
[1737250737582,0.4965503,104710.0,104700.0,0.52332193]
[1737250737782,0.6668503,104710.0,104700.0,0.52332193]
[1737250738082,0.578896,104710.0,104700.0,0.52332193]
[1737250739475,0.6668503,104710.0,104700.0,0.52332193]
[1737250739987,0.6668503,104710.0,104700.0,0.51396]
[1737250740873,0.6668503,104710.0,104690.0,0.03143277]
[1737250741177,0.5251,104700.0,104690.0,0.03143277]
[1737250742774,0.5729,104700.0,104690.0,0.03143277]
[1737250746580,0.2121,104700.0,104690.0,0.40418924]
[1737250746776,0.408592,104720.0,104700.0,0.0478]
[1737250746983,0.03246617,104720.0,104710.0,0.0879543]
[1737250747287,0.96691776,104730.0,104710.0,0.211195]
[1737250747582,0.83117446,104730.0,104710.0,0.31110136]
[1737250747771,0.83117446,104730.0,104710.0,0.35889536]
[1737250748175,0.47037446,104730.0,104720.0,0.047791]
[1737250748381,0.83117446,104730.0,104720.0,0.047791]
[1737250748582,0.47037446,104730.0,104720.0,0.047791]
[1737250748776,0.6885,104730.0,104720.0,0.047791]
[1737250748981,0.8242413,104730.0,104720.0,0.047791]
[1737250752991,0.736287,104730.0,104720.0,0.047791]
[1737250754381,0.8242413,104730.0,104710.0,0.22059734]
[1737250754585,0.4965453,104720.0,104710.0,0.22059734]
[1737250754880,0.408591,104720.0,104710.0,0.22059734]
[1737250755582,0.408591,104720.0,104710.0,0.17280434]
[1737250762093,0.408591,104720.0,104710.0,0.40138695]
[1737250762401,0.408591,104720.0,104710.0,0.48934125]
[1737250762695,0.408591,104720.0,104710.0,0.40138695]
[1737250764890,0.408591,104720.0,104710.0,0.23798695]
[1737250765195,0.6646453,104720.0,104710.0,0.23798695]
[1737250766392,0.6646453,104720.0,104710.0,0.00940434]
[1737250766599,0.047796,104710.0,104700.0,1.02899739]
[1737250766799,0.572196,104710.0,104700.0,1.04095267]
[1737250767496,0.572196,104710.0,104700.0,1.02899739]
[1737250767689,0.572196,104710.0,104700.0,0.75441793]
[1737250767893,0.572196,104710.0,104700.0,0.74246261]
[1737250768097,0.732696,104710.0,104700.0,0.74246261]
[1737250770295,0.732696,104710.0,104700.0,0.75455336]
[1737250771294,0.732696,104710.0,104700.0,0.84250766]
[1737250771705,0.371896,104710.0,104700.0,0.84250766]
[1737250772203,0.51457046,104710.0,104700.0,0.61392505]
[1737250772398,0.87537046,104710.0,104700.0,0.61392505]
[1737250773000,0.87537046,104710.0,104700.0,0.52597075]
[1737250773600,0.96332476,104710.0,104700.0,0.52597075]
[1737250773906,0.0478,104700.0,104690.0,0.41821538]
[1737250774113,0.4965543,104700.0,104690.0,0.41821538]
[1737250774807,0.4965543,104700.0,104690.0,0.43048139]
[1737250775201,0.4086,104700.0,104690.0,0.20189878]
[1737250776303,0.55176641,104700.0,104690.0,0.20189878]
[1737250776701,0.55176641,104700.0,104690.0,0.2138554]
[1737250777809,0.55176641,104700.0,104690.0,0.20189878]
[1737250778504,0.55176641,104700.0,104690.0,0.43048139]
[1737250778707,0.4086,104700.0,104690.0,0.43048139]
[1737250779004,0.4965543,104700.0,104690.0,0.43048139]
[1737250779711,0.4965543,104700.0,104690.0,1.06777121]
[1737250780911,0.4965543,104700.0,104690.0,0.43048139]
[1737250782417,0.4086,104700.0,104690.0,0.43048139]
[1737250784627,0.4965543,104700.0,104690.0,0.43048139]
[1737250785018,0.4965543,104700.0,104690.0,0.27228139]
[1737250785418,0.6537543,104700.0,104690.0,0.27228139]
[1737250786327,0.79692071,104700.0,104690.0,0.04369878]
[1737250787728,0.79692071,104700.0,104690.0,0.04226601]
[1737250790233,0.047805,104690.0,104680.0,0.17069932]
[1737250790435,0.8198593,104690.0,104680.0,0.17069932]
[1737250791730,0.04781,104680.0,104670.0,0.55038193]
[1737250792029,0.40861,104680.0,104670.0,0.55038193]
[1737250793134,0.40861,104680.0,104670.0,0.32179932]
[1737250794630,0.40861,104680.0,104670.0,1.0207845]
[1737250794827,0.40861,104680.0,104670.0,1.03577158]
[1737250797834,0.40861,104680.0,104670.0,1.04773062]
[1737250798540,0.40861,104680.0,104670.0,1.13568492]
[1737250798723,0.40861,104680.0,104670.0,1.03577158]
[1737250799834,0.40861,104680.0,104670.0,1.04773078]
[1737250800725,0.40861,104680.0,104670.0,0.69316367]
[1737250800926,0.40861,104680.0,104670.0,0.68120447]
[1737250801126,0.40861,104680.0,104670.0,0.76915877]
[1737250801326,0.408607,104690.0,104670.0,0.97427277]
[1737250801531,0.408607,104690.0,104680.0,0.0879543]
[1737250802224,0.408607,104690.0,104680.0,0.2435543]
[1737250803132,0.408607,104690.0,104680.0,0.64273379]
[1737250803336,0.408607,104690.0,104680.0,0.55477949]
[1737250803632,0.408607,104690.0,104680.0,0.64273379]
[1737250804532,0.55176641,104700.0,104680.0,0.70250121]
[1737250804737,0.3608,104690.0,104680.0,0.70250121]
[1737250805038,0.3608,104690.0,104680.0,0.69054379]
[1737250805532,0.3608,104690.0,104680.0,0.55477949]
[1737250805736,0.408605,104690.0,104680.0,0.55477949]
[1737250806037,0.408605,104690.0,104680.0,1.03534173]
[1737250806938,0.408605,104690.0,104680.0,1.0233841]
[1737250807528,0.408605,104690.0,104680.0,0.38418261]
[1737250808437,0.4965593,104690.0,104680.0,0.22858261]
[1737250808735,0.6542593,104690.0,104680.0,0.22858261]
[1737250808928,0.6542593,104690.0,104680.0,0.51511739]
[1737250809128,0.6542593,104690.0,104680.0,0.28653478]
[1737250810026,0.8156593,104690.0,104680.0,0.06448874]
[1737250810227,0.8156593,104690.0,104680.0,0.41778627]
[1737250811336,0.95882571,104690.0,104680.0,0.17078884]
[1737250815435,0.04781,104680.0,104670.0,0.17078884]
[1737250815737,0.6574643,104680.0,104670.0,0.17078884]
[1737250816046,0.7454186,104680.0,104670.0,0.17078884]
[1737250816343,0.7454186,104680.0,104670.0,0.05941284]
[1737250816548,0.047814,104670.0,104660.0,0.2871313]
[1737250816841,0.9090226,104670.0,104660.0,0.2871313]
[1737250818038,0.8210683,104670.0,104660.0,0.2871313]
[1737250818236,0.047823,104650.0,104640.0,0.43517878]
[1737250818545,0.408623,104650.0,104640.0,0.40218427]
[1737250819331,0.574723,104650.0,104640.0,0.40218427]
[1737250819748,0.935523,104650.0,104640.0,0.40218427]
[1737250820636,0.935523,104650.0,104640.0,0.17446581]
[1737250820637,1.0234773,104650.0,104640.0,0.17446581]
[1737250822743,0.8573773,104650.0,104640.0,0.17446581]
[1737250825544,0.8573773,104650.0,104640.0,0.33466581]
[1737250826251,0.047823,104650.0,104640.0,0.42262011]
[1737250826551,0.047823,104650.0,104640.0,0.58482011]
[1737250827745,0.047823,104650.0,104640.0,0.94562011]
[1737250828948,0.047823,104650.0,104640.0,1.17333857]
[1737250830052,0.047823,104650.0,104640.0,0.82449992]
[1737250830358,0.047823,104650.0,104640.0,0.81253857]
[1737250831843,0.047823,104650.0,104640.0,0.82450002]
[1737250832945,0.047823,104650.0,104640.0,0.73654572]
[1737250833453,0.047823,104650.0,104640.0,0.7351124]
[1737250833647,0.047823,104650.0,104640.0,0.72315095]
[1737250834548,0.047823,104650.0,104640.0,0.81110525]
[1737250834945,0.3608,104660.0,104640.0,0.81110525]
[1737250835145,0.04782,104660.0,104650.0,0.0879543]
[1737250835350,0.04782,104660.0,104650.0,0.4487543]
[1737250836354,0.04782,104660.0,104650.0,0.60047861]
[1737250836743,0.408615,104670.0,104650.0,0.73625491]
[1737250836944,0.408615,104670.0,104660.0,0.4529]
[1737250837757,0.047815,104670.0,104660.0,0.8137]
[1737250840452,0.047815,104670.0,104660.0,0.68061846]
[1737250840654,0.047815,104670.0,104660.0,0.6925784]
[1737250842659,0.047815,104670.0,104660.0,0.68061846]
[1737250842859,0.047815,104670.0,104660.0,0.6925782]
[1737250843060,0.047815,104670.0,104660.0,0.7117545]
[1737250844061,0.047815,104670.0,104660.0,0.69979476]
[1737250847459,0.10540894,104670.0,104660.0,0.7573887]
[1737250847968,0.047815,104670.0,104660.0,0.7573887]
[1737250850967,0.61890594,104680.0,104660.0,0.8052077]
[1737250851757,0.561312,104680.0,104670.0,0.05759394]
[1737250851957,0.408612,104680.0,104670.0,0.05759394]
[1737250852366,0.3608,104680.0,104670.0,0.05759394]
[1737250852558,0.3608,104680.0,104670.0,0.10540794]
[1737250852758,0.60944782,104690.0,104670.0,0.46620794]
[1737250852960,0.60944782,104690.0,104680.0,0.1477]
[1737250853160,0.46619994,104690.0,104680.0,0.20529394]
[1737250854964,0.46619994,104690.0,104680.0,0.1477]
[1737250855361,0.408606,104690.0,104680.0,0.1477]
[1737250855559,0.46619994,104690.0,104680.0,0.1477]
[1737250855963,0.46619994,104690.0,104670.0,0.51184851]
[1737250856167,0.52379788,104680.0,104670.0,0.52380659]
[1737250856466,0.61660394,104680.0,104670.0,0.52380659]
[1737250857569,0.61660394,104680.0,104670.0,0.01195808]
[1737250858466,0.61660394,104680.0,104670.0,0.01195856]
[1737250858860,0.61660394,104680.0,104670.0,0.0695525]
[1737250859261,0.61660394,104680.0,104670.0,0.01195856]
[1737250859463,0.55901,104680.0,104670.0,0.01195856]
[1737250859961,0.55901,104680.0,104660.0,1.77971418]
[1737250860266,0.55901,104680.0,104660.0,1.79167272]
[1737250860570,0.55901,104680.0,104670.0,0.08774983]
[1737250860756,0.55901,104680.0,104660.0,1.77971218]
[1737250860961,0.55901,104680.0,104660.0,1.79167066]
[1737250861272,0.55901,104680.0,104660.0,1.83948666]
[1737250861470,0.55901,104680.0,104670.0,0.22736327]
[1737250864474,0.55901,104680.0,104670.0,0.3151131]
[1737250864779,0.55901,104680.0,104670.0,0.22736327]
[1737250865971,0.5112,104680.0,104670.0,0.22736327]
[1737250866278,0.1504,104680.0,104670.0,0.6001216]
[1737250866873,0.1504,104680.0,104670.0,0.51149332]
[1737250867068,0.1504,104680.0,104670.0,0.87229332]
[1737250867269,0.1504,104680.0,104670.0,0.88425132]
[1737250867469,0.1504,104680.0,104670.0,0.52345132]
[1737250868480,0.1504,104680.0,104670.0,0.9978113]
[1737250869771,0.1504,104680.0,104670.0,0.6370113]
[1737250870274,0.1504,104680.0,104670.0,0.6250533]
[1737250870480,0.1504,104680.0,104670.0,0.63701165]
[1737250870771,0.1504,104680.0,104670.0,0.6250533]
[1737250871176,0.1504,104680.0,104670.0,0.63701162]
[1737250871371,0.1504,104680.0,104670.0,0.63701147]
[1737250872174,0.1504,104680.0,104670.0,0.97970783]
[1737250872384,0.1504,104680.0,104670.0,1.02752183]
[1737250872581,0.1504,104680.0,104670.0,1.38832183]
[1737250873481,0.1504,104680.0,104670.0,1.38832166]
[1737250873980,0.1504,104680.0,104670.0,1.47607149]
[1737250874377,0.1504,104680.0,104670.0,1.46411349]
[1737250875683,0.408607,104690.0,104670.0,1.41629949]
[1737250875880,0.408607,104690.0,104680.0,0.24114983]
[1737250875881,0.11107241,104690.0,104680.0,0.24114983]
[1737250876073,0.11107241,104690.0,104680.0,0.59525983]
[1737250876784,0.15887741,104690.0,104680.0,0.51946705]
[1737250876982,0.047805,104690.0,104680.0,0.82269384]
[1737250877184,0.047805,104690.0,104680.0,0.51639384]
[1737250877774,0.047805,104690.0,104680.0,0.42864401]
[1737250877977,0.408605,104690.0,104680.0,0.38083401]
[1737250878187,0.047805,104690.0,104680.0,0.38083401]
[1737250878886,0.49635483,104690.0,104680.0,0.22743401]
[1737250879075,0.74690466,104690.0,104680.0,0.22743401]
[1737250879270,0.04781,104680.0,104670.0,0.65074653]
[1737250879487,0.75120966,104680.0,104670.0,0.65074653]
[1737250880186,0.75120966,104680.0,104670.0,0.62682641]
[1737250880583,0.047814,104670.0,104660.0,0.30778288]
[1737250880770,0.58411366,104670.0,104660.0,0.28413005]
[1737250880975,0.49636383,104670.0,104660.0,0.28413005]
[1737250881379,0.88411366,104670.0,104630.0,1.03770304]
[1737250881580,0.047832,104630.0,104610.0,1.26831629]
[1737250881782,0.94493666,104620.0,104610.0,1.26831629]
[1737250881983,0.94493666,104620.0,104610.0,0.96678407]
[1737250882181,1.24493666,104620.0,104610.0,0.85054707]
[1737250882483,1.24493666,104620.0,104610.0,0.82588078]
[1737250882681,1.26809477,104620.0,104610.0,0.82578078]
[1737250883076,0.047842,104610.0,104600.0,0.1]
[1737250883288,0.58414166,104610.0,104600.0,0.1]
[1737250883879,0.81191561,104610.0,104600.0,0.1]
[1737250884384,0.72416578,104610.0,104600.0,0.1]
[1737250884885,0.69572257,104610.0,104590.0,0.15015725]
[1737250885190,0.44854983,104600.0,104590.0,0.19800625]
[1737250885374,0.44854983,104600.0,104580.0,0.1578]
[1737250885375,0.44854983,104600.0,104580.0,0.15471323]
[1737250885571,0.3608,104590.0,104580.0,0.20256823]
[1737250885783,0.3608,104590.0,104580.0,0.05892658]
[1737250886086,0.53145584,104590.0,104580.0,0.05892658]
[1737250887185,0.3608,104590.0,104580.0,0.05892658]
[1737250888785,0.53145584,104600.0,104590.0,0.047851]
[1737250889091,0.53145584,104600.0,104590.0,0.13560083]
[1737250890379,0.3608,104600.0,104590.0,0.13560083]
[1737250890583,0.3608,104600.0,104590.0,0.08774983]
[1737250891389,0.57929784,104610.0,104590.0,0.44854983]
[1737250891890,0.53145584,104610.0,104600.0,0.08774983]
[1737250892089,0.53145584,104610.0,104600.0,0.24124983]
[1737250893686,0.53145584,104610.0,104590.0,0.47137709]
[1737250893987,0.53145584,104610.0,104590.0,0.06878896]
[1737250895385,0.17065584,104610.0,104590.0,0.42958896]
[1737250895989,0.71488467,104620.0,104590.0,0.42958896]
[1737250896192,0.57929384,104620.0,104600.0,0.08774983]
[1737250896894,0.17065584,104610.0,104600.0,0.08774983]
[1737250898888,0.60796474,104630.0,104600.0,0.49639583]
[1737250899096,0.17010979,104620.0,104610.0,0.08774983]
[1737250899293,0.21794679,104620.0,104600.0,0.49639583]
[1737250899682,0.57874679,104620.0,104600.0,0.13559583]
[1737250899887,0.3608,104610.0,104600.0,0.13559583]
[1737250900087,0.3608,104610.0,104600.0,0.08774983]
[1737250900288,0.3608,104610.0,104600.0,0.13559483]
[1737250900594,0.57874679,104620.0,104600.0,0.13559483]
[1737250901399,0.408642,104610.0,104590.0,0.65209983]
[1737250901699,0.408642,104610.0,104600.0,0.08774983]
[1737250901900,0.3608,104610.0,104600.0,0.08774983]
[1737250902796,0.3608,104610.0,104600.0,0.13559583]
[1737250903896,0.408638,104620.0,104600.0,0.13559583]
[1737250904488,0.3608,104610.0,104600.0,0.13559583]
[1737250904795,0.408638,104620.0,104600.0,0.13559583]
[1737250905897,0.3608,104610.0,104600.0,0.13559583]
[1737250906397,0.408638,104620.0,104600.0,0.13559583]
[1737250906600,0.408638,104620.0,104610.0,0.2976]
[1737250909192,0.63641195,104620.0,104610.0,0.2976]
[1737250910703,0.408638,104620.0,104610.0,0.2976]
[1737250913405,0.60891452,104620.0,104610.0,0.2976]
[1737250914396,0.60891452,104620.0,104610.0,0.32300083]
[1737250915806,0.60891452,104620.0,104610.0,0.12197088]
[1737250918599,0.60891452,104620.0,104610.0,0.13393663]
[1737250918910,0.60891452,104620.0,104610.0,0.12197088]
[1737250919298,0.63752546,104620.0,104610.0,0.12197088]
[1737250923310,0.89431946,104620.0,104610.0,0.12197088]
[1737250926811,0.89431946,104620.0,104610.0,0.13393646]
[1737250927908,0.665432,104620.0,104600.0,0.61524341]
[1737250928111,0.665432,104620.0,104600.0,0.56110859]
[1737250928322,0.665432,104620.0,104600.0,0.60895259]
[1737250928514,0.665432,104620.0,104600.0,0.56110859]
[1737250929111,0.665432,104620.0,104600.0,0.549143]
[1737250929515,0.23999929,104610.0,104600.0,0.549143]
[1737250929815,0.40663561,104610.0,104600.0,0.63689283]
[1737250930607,0.36010889,104610.0,104600.0,0.63689283]
[1737250931518,0.58974657,104610.0,104600.0,0.66327583]
[1737250931813,0.58974657,104610.0,104600.0,0.51968878]
[1737250932609,0.58371903,104610.0,104600.0,0.56753278]
[1737250932809,0.396274,104610.0,104600.0,0.56753278]
[1737250934211,0.63260779,104610.0,104600.0,0.56753278]
[1737250934420,0.58640222,104610.0,104600.0,1.01608261]
[1737250934622,0.58640222,104610.0,104600.0,0.92833278]
[1737250935615,0.20094714,104610.0,104600.0,0.92833278]
[1737250936611,0.20094714,104610.0,104600.0,0.56753278]
[1737250936812,0.31565167,104610.0,104600.0,0.56753278]
[1737250937811,0.14347803,104610.0,104600.0,0.56753278]
[1737250938209,0.14347803,104610.0,104600.0,0.20673278]
[1737250939714,0.31565167,104610.0,104600.0,0.20673278]
[1737250940112,0.31565167,104610.0,104600.0,0.2186985]
[1737250940713,0.17217364,104610.0,104600.0,0.2186985]
[1737250940917,0.17217364,104610.0,104600.0,0.21869864]
[1737250941523,0.17217364,104610.0,104600.0,0.20673278]
[1737250941721,0.21870142,104610.0,104600.0,0.20673278]
[1737250941911,0.21870142,104610.0,104600.0,0.21869864]
[1737250948729,0.21870142,104610.0,104600.0,0.21869877]
[1737250950726,0.04652778,104610.0,104600.0,0.21869877]
[1737250951128,0.04652778,104610.0,104600.0,0.2186988]
[1737250951830,0.04652778,104610.0,104600.0,0.17394285]
[1737250952131,0.40732778,104610.0,104600.0,0.17394285]
[1737250952326,0.54992778,104610.0,104600.0,0.17394285]
[1737250952526,0.54992778,104610.0,104600.0,0.17394295]
[1737250952727,0.70434714,104610.0,104600.0,0.17394295]
[1737250953531,0.70434714,104610.0,104600.0,0.08619312]
[1737250953727,0.79209697,104610.0,104600.0,0.026383]
[1737250953932,1.08829697,104610.0,104590.0,0.562208]
[1737250954128,0.08774983,104600.0,104590.0,0.57417474]
[1737250954434,0.08774983,104600.0,104590.0,0.562208]
[1737250954634,0.44854983,104600.0,104590.0,0.01196701]
[1737250954834,0.49639583,104600.0,104580.0,0.408653]
[1737250955031,0.1388,104590.0,104580.0,0.05982069]
[1737250955233,0.1388,104590.0,104580.0,0.06281341]
[1737250955629,0.643,104590.0,104580.0,0.07478195]
[1737250955829,0.643,104590.0,104580.0,0.09484852]
[1737250956536,0.81509403,104590.0,104580.0,0.09484852]
[1737250956737,0.81509403,104590.0,104580.0,0.18259835]
[1737250956931,0.31089403,104590.0,104580.0,0.19456679]
[1737250957127,0.17209403,104590.0,104580.0,0.78051662]
[1737250957327,0.17209403,104590.0,104580.0,0.91851662]
[1737250958832,0.1433081,104590.0,104580.0,0.90654818]
[1737250959035,0.1433081,104590.0,104580.0,0.91851585]
[1737250959834,0.1433081,104600.0,104590.0,0.047851]
[1737250960035,0.6524081,104600.0,104590.0,0.1475685]
[1737250960534,0.6524081,104600.0,104590.0,0.13560083]
[1737250962132,0.1433081,104600.0,104590.0,0.13560083]
[1737250962330,0.06497777,104610.0,104590.0,0.64666758]
[1737250962635,0.06497777,104610.0,104600.0,0.26979583]
[1737250963538,0.06497777,104610.0,104600.0,0.41549583]
[1737250963933,0.6319,104620.0,104600.0,0.36764983]
[1737250964234,0.4968,104620.0,104610.0,0.13559183]
[1737250966442,0.69774714,104620.0,104610.0,0.13559183]
[1737250968034,0.33694714,104620.0,104610.0,0.13559183]
[1737250968234,0.136,104620.0,104610.0,0.13559183]
[1737250968842,0.136,104620.0,104610.0,0.16835331]
[1737250969037,0.89268314,104630.0,104610.0,0.16835331]
[1737250969235,1.04058314,104630.0,104610.0,0.16835331]
[1737250970045,1.04058314,104630.0,104610.0,0.21619231]
[1737250970342,1.04058314,104630.0,104610.0,0.16835031]
[1737250970535,0.40019431,104620.0,104610.0,0.08060048]
[1737250970735,0.40019431,104620.0,104610.0,0.16835031]
[1737250972144,1.04058314,104630.0,104610.0,0.16835031]
[1737250972446,1.04058314,104630.0,104620.0,0.08774983]
[1737250973745,1.04058314,104630.0,104610.0,0.07723678]
[1737250973938,1.04058314,104630.0,104610.0,0.12507578]
[1737250974444,1.04058314,104630.0,104610.0,0.07723678]
[1737250975035,0.839636,104630.0,104610.0,0.07723678]
[1737250975236,0.3608,104620.0,104610.0,0.12507578]
[1737250975744,0.3608,104620.0,104610.0,0.16498661]
[1737250976443,0.839635,104630.0,104610.0,0.16498661]
[1737250977141,0.04652606,104620.0,104610.0,0.16498661]
[1737250980149,0.40732606,104620.0,104610.0,0.16498661]
[1737250981037,0.04652606,104620.0,104610.0,0.16498661]
[1737250981239,0.839635,104630.0,104610.0,0.16498661]
[1737250981545,0.839635,104630.0,104610.0,0.06923896]
[1737250981745,0.35084885,104620.0,104610.0,0.06923896]
[1737250982049,0.71164885,104620.0,104610.0,0.06923896]
[1737250982949,0.56174714,104620.0,104610.0,0.06923896]
[1737250984451,0.56174714,104620.0,104610.0,0.047841]
[1737250984650,0.56174714,104620.0,104610.0,0.13559083]
[1737250987549,0.3608,104620.0,104610.0,0.13559083]
[1737250989454,0.5328085,104620.0,104610.0,0.13559083]
[1737250993357,0.5328085,104620.0,104610.0,0.10548003]
[1737250994256,0.5328085,104620.0,104610.0,0.11744555]
[1737250994850,0.5328085,104620.0,104610.0,0.25474555]
[1737250995654,0.1720085,104620.0,104610.0,0.25474555]
[1737250995863,0.5328085,104620.0,104610.0,0.25474555]
[1737250997463,0.5328085,104620.0,104610.0,0.25474558]
[1737250998662,0.5328085,104620.0,104610.0,0.19710655]
[1737250998852,0.5328085,104620.0,104610.0,0.25474558]
[1737250999862,0.3608,104620.0,104610.0,0.25474558]
[1737251000868,0.3608,104620.0,104610.0,0.25474562]
[1737251004758,0.3608,104620.0,104610.0,0.25474563]
[1737251005967,0.59043768,104620.0,104610.0,0.25474563]
[1737251008864,0.22963768,104620.0,104610.0,0.25474563]
[1737251009060,0.59043768,104620.0,104610.0,0.25474563]
[1737251009264,0.59043768,104620.0,104610.0,0.24278003]
[1737251009973,0.95300722,104620.0,104610.0,0.24278003]
[1737251010971,0.59043768,104620.0,104610.0,0.24278003]
[1737251013777,0.3608,104620.0,104610.0,0.24278003]
[1737251015876,0.3608,104620.0,104610.0,0.10548003]
[1737251016466,0.3608,104620.0,104610.0,0.0598066]
[1737251016871,0.3608,104620.0,104610.0,0.11744563]
[1737251017873,0.3608,104620.0,104610.0,0.0598066]
[1737251020575,0.3608,104620.0,104610.0,0.047841]
[1737251021377,0.3608,104620.0,104610.0,0.10548003]
[1737251021883,0.59043768,104620.0,104610.0,0.10548003]
[1737251022185,0.59043768,104620.0,104610.0,0.1174457]
[1737251022973,0.79144752,104620.0,104610.0,0.1174457]
[1737251023887,0.56180984,104620.0,104610.0,0.1174457]
[1737251024380,0.20100984,104620.0,104610.0,0.10548003]
[1737251024592,0.15230495,104620.0,104610.0,0.68678407]
[1737251025184,0.15230495,104620.0,104610.0,0.62914504]
[1737251026285,0.15230495,104620.0,104610.0,0.6291437]
[1737251026487,0.14345086,104630.0,104620.0,0.047837]
[1737251026782,0.14345086,104630.0,104620.0,0.25417603]
[1737251027588,0.14345086,104630.0,104620.0,0.65247836]
[1737251028491,0.50425086,104630.0,104620.0,0.65247836]
[1737251028685,0.14345086,104630.0,104620.0,0.65247836]
[1737251029881,0.14345086,104630.0,104620.0,0.42487703]
[1737251030682,0.14345086,104630.0,104620.0,0.63141606]
[1737251031283,0.14345086,104630.0,104620.0,0.67940105]
[1737251031484,0.14345086,104630.0,104620.0,0.69136479]
[1737251033990,0.14345086,104630.0,104620.0,0.67940105]
[1737251034192,0.14345086,104630.0,104620.0,0.69136476]
[1737251036293,0.14345086,104630.0,104620.0,0.69136466]
[1737251036487,0.14345086,104630.0,104620.0,0.67940105]
[1737251036685,0.14345086,104630.0,104620.0,0.69136466]
[1737251038490,0.14345086,104630.0,104620.0,0.63372563]
[1737251039693,0.14345086,104630.0,104620.0,0.62176202]
[1737251040389,0.14345086,104630.0,104620.0,0.36738599]
[1737251040590,0.50425086,104630.0,104620.0,0.42502502]
[1737251040790,0.64615086,104630.0,104620.0,0.42502502]
[1737251041590,0.28535086,104630.0,104620.0,0.42502502]
[1737251041795,0.1419,104630.0,104620.0,0.25432402]
[1737251041992,0.1419,104630.0,104620.0,0.35980005]
[1737251042288,0.63840906,104640.0,104620.0,0.44476102]
[1737251042493,0.58077003,104640.0,104630.0,0.05763903]
[1737251044096,0.408629,104640.0,104630.0,0.00432904]
[1737251045398,0.408629,104640.0,104630.0,0.05216104]
[1737251045793,0.46626803,104640.0,104630.0,0.05216104]
[1737251045993,0.46626803,104640.0,104630.0,0.047832]
[1737251049700,0.63822718,104640.0,104630.0,0.047832]
[1737251050094,0.63822718,104640.0,104620.0,0.61546002]
[1737251050301,0.63822718,104640.0,104620.0,0.62742368]
[1737251051100,0.1433354,104630.0,104620.0,0.62742368]
[1737251051799,0.1433354,104630.0,104620.0,0.57958868]
[1737251052100,0.1433354,104630.0,104620.0,0.56762502]
[1737251052101,0.5041354,104630.0,104620.0,0.56762502]
[1737251053195,0.78156558,104630.0,104620.0,0.36738599]
[1737251054099,0.83920461,104630.0,104620.0,0.21868599]
[1737251054396,1.27840461,104630.0,104620.0,0.21868599]
[1737251054798,1.07743018,104630.0,104620.0,0.21868599]
[1737251056401,1.07743018,104630.0,104620.0,0.04798499]
[1737251056402,0.90547103,104630.0,104620.0,0.04798499]
[1737251056701,0.047842,104610.0,104600.0,0.07477392]
[1737251056904,0.46628103,104610.0,104600.0,0.13241295]
[1737251057097,0.408642,104610.0,104600.0,0.13241295]
[1737251057298,0.46628103,104610.0,104600.0,0.13241295]
[1737251057503,0.46628103,104610.0,104600.0,0.07477392]
[1737251058101,0.46628103,104610.0,104600.0,0.02692992]
[1737251058102,0.63830194,104610.0,104600.0,0.02692992]
[1737251058495,0.79170194,104610.0,104600.0,0.02692992]
[1737251058900,0.83954694,104610.0,104590.0,1.04829278]
[1737251059099,0.83954794,104610.0,104590.0,1.04829278]
[1737251059297,0.79170194,104610.0,104590.0,1.04829278]
[1737251059499,0.83954694,104610.0,104590.0,1.09731791]
[1737251059705,0.66752603,104610.0,104590.0,1.09731791]
[1737251060803,0.047846,104600.0,104590.0,0.73651791]
[1737251061108,0.10548503,104600.0,104590.0,0.73651791]
[1737251061298,0.42059306,104600.0,104590.0,0.54716416]
[1737251061701,0.42059306,104600.0,104590.0,0.55913131]
[1737251062304,0.42059306,104600.0,104590.0,0.50149228]
[1737251062608,0.24871595,104600.0,104590.0,0.50149228]
[1737251063418,0.60951595,104600.0,104590.0,0.48952513]
[1737251063809,0.60951595,104600.0,104590.0,0.50448509]
[1737251064909,0.46628503,104600.0,104590.0,0.50448509]
[1737251068405,0.46628503,104600.0,104590.0,0.48952513]
[1737251071213,0.60951595,104600.0,104590.0,0.48952513]
[1737251071407,0.60951595,104600.0,104590.0,0.50448505]
[1737251072107,0.24871595,104600.0,104590.0,0.50448505]
[1737251072307,0.60951595,104600.0,104590.0,0.50448505]
[1737251072809,0.60951595,104600.0,104590.0,0.56212408]
[1737251073113,0.14323092,104600.0,104590.0,0.60997508]
[1737251073313,0.14323092,104600.0,104590.0,0.59501516]
[1737251073513,0.50403092,104600.0,104590.0,0.59501516]
[1737251074715,0.14323092,104600.0,104590.0,0.59501516]
[1737251075410,0.14323092,104600.0,104590.0,0.95581516]
[1737251075718,0.14323092,104610.0,104590.0,0.95581516]
[1737251075904,0.50403092,104610.0,104600.0,0.05763903]
[1737251076914,0.14323092,104610.0,104600.0,0.16312406]
[1737251078619,0.72374703,104620.0,104600.0,0.16312406]
[1737251078810,0.72374703,104620.0,104610.0,0.50053903]
[1737251079410,0.78138606,104620.0,104610.0,0.50053903]
[1737251079921,0.72374703,104620.0,104610.0,0.50053903]
[1737251080219,0.55186992,104620.0,104610.0,0.50053903]
[1737251081017,0.60950895,104620.0,104610.0,0.50053903]
[1737251082421,0.24870895,104620.0,104610.0,0.50053903]
[1737251082717,0.60950895,104620.0,104610.0,0.50053903]
[1737251084421,0.78138606,104620.0,104610.0,0.50053903]
[1737251084716,0.78138606,104620.0,104610.0,0.54140445]
[1737251086717,0.63815514,104620.0,104610.0,0.54140445]
[1737251089025,0.78146061,104620.0,104610.0,0.54140445]
[1737251091725,0.78146061,104620.0,104610.0,0.48376542]
[1737251092125,0.78146061,104620.0,104610.0,0.34256542]
[1737251093731,0.78146061,104620.0,104610.0,0.18946542]
[1737251094325,0.52391706,104620.0,104610.0,0.18946542]
[1737251094536,0.52391706,104620.0,104610.0,0.04086542]
[1737251094828,0.047843,104610.0,104590.0,0.842748]
[1737251095028,0.10548503,104600.0,104590.0,0.49391473]
[1737251095225,0.408646,104600.0,104590.0,0.55155376]
[1737251095427,0.408646,104600.0,104590.0,0.53958703]
[1737251095632,0.047846,104600.0,104590.0,0.53958703]
[1737251096128,0.047846,104600.0,104590.0,0.55155439]
[1737251096328,0.10548503,104600.0,104590.0,0.44606736]
[1737251096525,0.46628503,104600.0,104590.0,0.4341]
[1737251096723,0.46628503,104600.0,104590.0,0.44905943]
[1737251096923,0.69590336,104600.0,104590.0,0.15765943]
[1737251097229,0.63826433,104600.0,104590.0,0.15765943]
[1737251097923,0.63826433,104600.0,104590.0,0.19121672]
[1737251098331,0.46628503,104600.0,104590.0,0.19121672]
[1737251098728,0.46628503,104600.0,104590.0,0.04851672]